﻿Beneficiary,Transaction Date,TransNo,Procurement,Purpose of Spend,Organisation,Amount
Ate o?clock,04/10/2021,31101412,"Supplies, Services & Other Expenses",Subsistence,Greater Manchester Combined Authority,29.90
DISCLOSURE AND BARRING,04/10/2021,31096300,"Supplies, Services & Other Expenses",Professional Fees,Greater Manchester Combined Authority,23.00
DUMFRIES ARMS HOTEL,04/10/2021,31097706,"Supplies, Services & Other Expenses",Subsistence,Greater Manchester Combined Authority,58.00
DUMFRIES ARMS HOTEL,04/10/2021,31097746,"Supplies, Services & Other Expenses",Subsistence,Greater Manchester Combined Authority,210.00
Q PARK THE SHAMBLES,04/10/2021,31101380,Transport Related Expenditure,Officers Travel & Subsistence,Greater Manchester Combined Authority,5.40
WM MORRISONS STORE,04/10/2021,31101363,"Supplies, Services & Other Expenses",Subsistence,Greater Manchester Combined Authority,5.34
MCDONALDS 501,04/10/2021,31101514,"Supplies, Services & Other Expenses",Subsistence,Greater Manchester Combined Authority,11.26
THE COMMERCIAL,04/10/2021,31101524,"Supplies, Services & Other Expenses",Subsistence,Greater Manchester Combined Authority,35.10
LOCHSIDE HOUSE HOTEL,04/10/2021,31096120,"Supplies, Services & Other Expenses",Subsistence,Greater Manchester Combined Authority,255.00
Tebay Services South,04/10/2021,31096274,"Supplies, Services & Other Expenses",Subsistence,Greater Manchester Combined Authority,13.40
Q PARK THE SHAMBLES,04/10/2021,31101556,Transport Related Expenditure,Officers Travel & Subsistence,Greater Manchester Combined Authority,15.20
WM MORRISONS STORE,04/10/2021,31101547,"Supplies, Services & Other Expenses",Subsistence,Greater Manchester Combined Authority,3.75
WM MORRISONS STORE,04/10/2021,31101385,"Supplies, Services & Other Expenses",Subsistence,Greater Manchester Combined Authority,8.80
WM MORRISONS STORE,04/10/2021,31101394,"Supplies, Services & Other Expenses",Subsistence,Greater Manchester Combined Authority,3.75
WM MORRISONS STORE,04/10/2021,31101430,"Supplies, Services & Other Expenses",Subsistence,Greater Manchester Combined Authority,3.75
Subway 32644 Henley St,04/10/2021,31101589,"Supplies, Services & Other Expenses",Subsistence,Greater Manchester Combined Authority,6.69
GREGGS,06/10/2021,31096118,"Supplies, Services & Other Expenses",Subsistence,Greater Manchester Combined Authority,10.85
GREGGS,06/10/2021,31096127,"Supplies, Services & Other Expenses",Subsistence,Greater Manchester Combined Authority,10.60
GREGGS,06/10/2021,31096183,"Supplies, Services & Other Expenses",Subsistence,Greater Manchester Combined Authority,11.45
M6 TOLL,06/10/2021,31096195,"Supplies, Services & Other Expenses",Subsistence,Greater Manchester Combined Authority,5.90
M6 TOLL,06/10/2021,31096201,"Supplies, Services & Other Expenses",Subsistence,Greater Manchester Combined Authority,5.90
MCDONALDS 1028,06/10/2021,31094215,"Supplies, Services & Other Expenses",Subsistence,Greater Manchester Combined Authority,35.92
REDESDALE ARMS HOTEL,06/10/2021,31096108,"Supplies, Services & Other Expenses",Subsistence,Greater Manchester Combined Authority,10.00
iStock.com,11/10/2021,31099574,"Supplies, Services & Other Expenses",Communications,Greater Manchester Combined Authority,156.00
IZ  J D WETHERSPOON PL,12/10/2021,31096313,"Supplies, Services & Other Expenses",Subsistence,Greater Manchester Combined Authority,20.75
ELTON BLUELINE,13/10/2021,31099602,Transport Related Expenditure,Officers Travel & Subsistence,Greater Manchester Combined Authority,13.50
C19 TESTING  MKLT-M7C1,13/10/2021,31101422,Transport Related Expenditure,Officers Travel & Subsistence,Greater Manchester Combined Authority,29.00
C19 TESTING  0V0L-26G1,13/10/2021,31101494,Transport Related Expenditure,Officers Travel & Subsistence,Greater Manchester Combined Authority,29.00
TESCO STORE 2699,13/10/2021,31097817,"Supplies, Services & Other Expenses",Stationery,Greater Manchester Combined Authority,18.75
WWW.RANDOXHEALTH.COM,13/10/2021,31101410,Transport Related Expenditure,Officers Travel & Subsistence,Greater Manchester Combined Authority,48.00
WWW.RANDOXHEALTH.COM,13/10/2021,31101569,Transport Related Expenditure,Officers Travel & Subsistence,Greater Manchester Combined Authority,48.00
W WING YIP (MANCHE,15/10/2021,31099449,"Supplies, Services & Other Expenses",Food,Greater Manchester Combined Authority,2.96
W WING YIP (MANCHE,15/10/2021,31101425,"Supplies, Services & Other Expenses",Food,Greater Manchester Combined Authority,8.28
WWW.PUBLISHING.ENERGYI,15/10/2021,31101434,"Supplies, Services & Other Expenses",Fire Safety,Greater Manchester Combined Authority,34.00
AMZNMktplace,18/10/2021,31101453,"Supplies, Services & Other Expenses",Operational Equipment Non-Consumables,Greater Manchester Combined Authority,45.94
DOMINOS,19/10/2021,31099519,"Supplies, Services & Other Expenses",Subsistence,Greater Manchester Combined Authority,13.98
Amazon.co.uk X69YI9535,20/10/2021,31103296,"Supplies, Services & Other Expenses",Stationery,Greater Manchester Combined Authority,9.99
AMZNMKTPLACE AMAZON.CO,20/10/2021,31103336,"Supplies, Services & Other Expenses",Subsistence,Greater Manchester Combined Authority,37.38
AMZNMKTPLACE AMAZON.CO,20/10/2021,31103351,"Supplies, Services & Other Expenses",Subsistence,Greater Manchester Combined Authority,35.00
AMZNMKTPLACE AMAZON.CO,20/10/2021,31103442,"Supplies, Services & Other Expenses",Subsistence,Greater Manchester Combined Authority,29.99
Amazon.co.uk 4H3G02675,20/10/2021,31103301,"Supplies, Services & Other Expenses",Stationery,Greater Manchester Combined Authority,24.10
ALDI 34 773,21/10/2021,31103418,"Supplies, Services & Other Expenses",Food,Greater Manchester Combined Authority,29.12
M6 TOLL,21/10/2021,31103446,Transport Related Expenditure,Officers Travel & Subsistence,Greater Manchester Combined Authority,7.00
M6 TOLL,21/10/2021,31103505,Transport Related Expenditure,Officers Travel & Subsistence,Greater Manchester Combined Authority,7.00
THE SPICE ROOM,21/10/2021,31103309,"Supplies, Services & Other Expenses",Subsistence,Greater Manchester Combined Authority,16.40
1 AND 1 IONOS LTD,22/10/2021,31101581,"Supplies, Services & Other Expenses",Computer Software,Greater Manchester Combined Authority,62.88
1 AND 1 IONOS LTD,22/10/2021,31103267,"Supplies, Services & Other Expenses",Computer Software,Greater Manchester Combined Authority,15.72
1 AND 1 IONOS LTD,22/10/2021,31103438,"Supplies, Services & Other Expenses",Computer Software,Greater Manchester Combined Authority,15.60
1 AND 1 IONOS LTD,22/10/2021,31103443,"Supplies, Services & Other Expenses",Computer Software,Greater Manchester Combined Authority,15.72
AMZNMktplace,22/10/2021,31103356,"Supplies, Services & Other Expenses",Subsistence,Greater Manchester Combined Authority,56.93
CBT NUGGETS LLC,22/10/2021,31103481,Indirect Employee Allowances,Devolved Training,Greater Manchester Combined Authority,388.24
EB  HOW TO PRACTICALLY,22/10/2021,31099591,Indirect Employee Allowances,Training Course Fees,Greater Manchester Combined Authority,324.00
EURO CAR PARTS P,22/10/2021,31103288,Premises Related Expenditure,Responsive Repairs & Maintenance,Greater Manchester Combined Authority,3.99
JAMES COOKSON/STOCKPT/,22/10/2021,31103385,Premises Related Expenditure,Responsive Repairs & Maintenance,Greater Manchester Combined Authority,19.15
KEYWAYS SECURITY SYSTE,22/10/2021,31103226,Premises Related Expenditure,Responsive Repairs & Maintenance,Greater Manchester Combined Authority,187.18
MOBILEWORXS E COMMERCE,22/10/2021,31101452,"Supplies, Services & Other Expenses",Computer Hardware,Greater Manchester Combined Authority,105.60
SCREWFIX DIR LTD,22/10/2021,31103331,Premises Related Expenditure,Responsive Repairs & Maintenance,Greater Manchester Combined Authority,14.22
SCREWFIX DIR LTD,22/10/2021,31103479,Premises Related Expenditure,Responsive Repairs & Maintenance,Greater Manchester Combined Authority,31.99
SCREWFIX DIR LTD,22/10/2021,31103507,Premises Related Expenditure,Responsive Repairs & Maintenance,Greater Manchester Combined Authority,13.96
SCREWFIX DIRECT,22/10/2021,31103263,Premises Related Expenditure,Responsive Repairs & Maintenance,Greater Manchester Combined Authority,21.98
SCREWFIX DIRECT,22/10/2021,31103322,Premises Related Expenditure,Responsive Repairs & Maintenance,Greater Manchester Combined Authority,9.99
SCREWFIX DIRECT,22/10/2021,31103343,Premises Related Expenditure,Responsive Repairs & Maintenance,Greater Manchester Combined Authority,6.38
SCREWFIX DIRECT,22/10/2021,31103362,Premises Related Expenditure,Responsive Repairs & Maintenance,Greater Manchester Combined Authority,4.68
SCREWFIX DIRECT,22/10/2021,31103374,Premises Related Expenditure,Responsive Repairs & Maintenance,Greater Manchester Combined Authority,99.24
SCREWFIX DIRECT,22/10/2021,31103393,Premises Related Expenditure,Responsive Repairs & Maintenance,Greater Manchester Combined Authority,4.49
SCREWFIX DIRECT,22/10/2021,31103398,Premises Related Expenditure,Responsive Repairs & Maintenance,Greater Manchester Combined Authority,159.35
SCREWFIX DIRECT,22/10/2021,31103465,Premises Related Expenditure,Responsive Repairs & Maintenance,Greater Manchester Combined Authority,10.99
SCREWFIX DIRECT,22/10/2021,31103468,Premises Related Expenditure,Responsive Repairs & Maintenance,Greater Manchester Combined Authority,112.15
SCREWFIX DIRECT,22/10/2021,31103500,Premises Related Expenditure,Responsive Repairs & Maintenance,Greater Manchester Combined Authority,2.39
SP   CANMAC,22/10/2021,31103312,Premises Related Expenditure,Responsive Repairs & Maintenance,Greater Manchester Combined Authority,187.80
TESCO STORES 3378,22/10/2021,31103207,Premises Related Expenditure,Responsive Repairs & Maintenance,Greater Manchester Combined Authority,19.00
TOOLSTATION LTD,22/10/2021,31103432,Premises Related Expenditure,Responsive Repairs & Maintenance,Greater Manchester Combined Authority,15.49
TOOLSTATION LTD,22/10/2021,31103437,Premises Related Expenditure,Responsive Repairs & Maintenance,Greater Manchester Combined Authority,-2.00
TOOLSTATION LTD,22/10/2021,31103471,Premises Related Expenditure,Responsive Repairs & Maintenance,Greater Manchester Combined Authority,6.98
TOOLSTATION UK,22/10/2021,31103344,Premises Related Expenditure,Responsive Repairs & Maintenance,Greater Manchester Combined Authority,2.08
TRAVIS PERKINS,22/10/2021,31103429,Premises Related Expenditure,Responsive Repairs & Maintenance,Greater Manchester Combined Authority,24.94
WWW.CGPBOOKS.CO.UK,22/10/2021,31099564,Indirect Employee Allowances,Other Training Expenses,Greater Manchester Combined Authority,103.87
WWW.FIXTHEBOG.UK,22/10/2021,31103491,Premises Related Expenditure,Responsive Repairs & Maintenance,Greater Manchester Combined Authority,84.37
COMPASS CONTRACT SERVI,23/10/2021,31103473,"Supplies, Services & Other Expenses",Subsistence,Greater Manchester Combined Authority,190.00
ARCO ASHTON UNDER LYNE,25/10/2021,31103225,Premises Related Expenditure,Waste Site Responsive,Greater Manchester Combined Authority,363.00
Bolton Lock Company Li,25/10/2021,31103396,Premises Related Expenditure,Waste Site Programmed,Greater Manchester Combined Authority,45.03
CITY ELECTRICAL FA,25/10/2021,31103463,Premises Related Expenditure,Waste Site Programmed,Greater Manchester Combined Authority,10.56
LANCASTER N/E WH SMITH,25/10/2021,31103291,"Supplies, Services & Other Expenses",Subsistence,Greater Manchester Combined Authority,7.18
MailChimp,25/10/2021,31103353,"Supplies, Services & Other Expenses",Digital,Greater Manchester Combined Authority,18.94
RS COMPONENTS,25/10/2021,31103276,Premises Related Expenditure,Responsive Repairs & Maintenance,Greater Manchester Combined Authority,118.94
SEDDONS (BOLTON),25/10/2021,31103248,Premises Related Expenditure,Waste Site Programmed,Greater Manchester Combined Authority,53.59
STORY BLOCKSAUDIO,25/10/2021,31099613,Premises Related Expenditure,Responsive Repairs & Maintenance,Greater Manchester Combined Authority,11.14
TESCO STORE 2440,25/10/2021,31097797,"Supplies, Services & Other Expenses",Subsistence,Greater Manchester Combined Authority,40.74
THE YEWDALE INN,25/10/2021,31103330,"Supplies, Services & Other Expenses",Subsistence,Greater Manchester Combined Authority,100.00
THE YEWDALE INN,25/10/2021,31103409,"Supplies, Services & Other Expenses",Subsistence,Greater Manchester Combined Authority,12.95
TOTALWORKWE,25/10/2021,31101576,"Supplies, Services & Other Expenses",Subsistence,Greater Manchester Combined Authority,38.84
AMZNMktplace,26/10/2021,31103475,"Supplies, Services & Other Expenses",Subsistence,Greater Manchester Combined Authority,79.94
AMZNMktplace,26/10/2021,31103240,"Supplies, Services & Other Expenses",Subsistence,Greater Manchester Combined Authority,206.66
AMZNMKTPLACE AMAZON.CO,26/10/2021,31103392,"Supplies, Services & Other Expenses",Kitchen Equipment,Greater Manchester Combined Authority,8.75
APL LOCKSMITHS LTD SHO,26/10/2021,31103496,Premises Related Expenditure,Responsive Repairs & Maintenance,Greater Manchester Combined Authority,50.00
B & Q 1190,26/10/2021,31103285,Premises Related Expenditure,Responsive Repairs & Maintenance,Greater Manchester Combined Authority,22.80
B & Q 1190,26/10/2021,31103450,Premises Related Expenditure,Responsive Repairs & Maintenance,Greater Manchester Combined Authority,128.25
B & Q 1311,26/10/2021,31103306,Premises Related Expenditure,Responsive Repairs & Maintenance,Greater Manchester Combined Authority,30.55
BURY PLASTICS,26/10/2021,31103492,Premises Related Expenditure,Responsive Repairs & Maintenance,Greater Manchester Combined Authority,33.52
CROWN DECORATING CENTR,26/10/2021,31103419,Premises Related Expenditure,Responsive Repairs & Maintenance,Greater Manchester Combined Authority,72.00
DVSA,26/10/2021,31097794,"Supplies, Services & Other Expenses",Professional Fees,Greater Manchester Combined Authority,300.00
DVSA,26/10/2021,31103354,"Supplies, Services & Other Expenses",Professional Fees,Greater Manchester Combined Authority,315.00
GEORGE HILL OLDHAM LIM,26/10/2021,31103383,Premises Related Expenditure,Responsive Repairs & Maintenance,Greater Manchester Combined Authority,417.83
MUR-FIX LTD,26/10/2021,31103217,Premises Related Expenditure,Responsive Repairs & Maintenance,Greater Manchester Combined Authority,59.99
MUR-FIX LTD,26/10/2021,31103298,Premises Related Expenditure,Responsive Repairs & Maintenance,Greater Manchester Combined Authority,168.86
MUR-FIX LTD,26/10/2021,31103501,Premises Related Expenditure,Responsive Repairs & Maintenance,Greater Manchester Combined Authority,59.99
SCREWFIX DIR LTD,26/10/2021,31103361,Premises Related Expenditure,Responsive Repairs & Maintenance,Greater Manchester Combined Authority,18.51
SCREWFIX DIR LTD,26/10/2021,31103372,Premises Related Expenditure,Responsive Repairs & Maintenance,Greater Manchester Combined Authority,30.36
SCREWFIX DIR LTD,26/10/2021,31103433,Premises Related Expenditure,Responsive Repairs & Maintenance,Greater Manchester Combined Authority,12.99
SCREWFIX DIR LTD,26/10/2021,31103483,Premises Related Expenditure,Responsive Repairs & Maintenance,Greater Manchester Combined Authority,189.99
SCREWFIX DIR LTD,26/10/2021,31103494,Premises Related Expenditure,Responsive Repairs & Maintenance,Greater Manchester Combined Authority,50.95
SELCO TRADING CTR,26/10/2021,31103215,Premises Related Expenditure,Responsive Repairs & Maintenance,Greater Manchester Combined Authority,51.74
SELCO TRADING CTR,26/10/2021,31103371,Premises Related Expenditure,Responsive Repairs & Maintenance,Greater Manchester Combined Authority,42.23
SELCO TRADING CTR,26/10/2021,31103486,Premises Related Expenditure,Responsive Repairs & Maintenance,Greater Manchester Combined Authority,174.96
SignMax AB,26/10/2021,31103387,Premises Related Expenditure,Responsive Repairs & Maintenance,Greater Manchester Combined Authority,35.88
SignMax AB,26/10/2021,31103307,Premises Related Expenditure,Responsive Repairs & Maintenance,Greater Manchester Combined Authority,15.72
SignMax AB,26/10/2021,31103435,Premises Related Expenditure,Responsive Repairs & Maintenance,Greater Manchester Combined Authority,27.36
TESCO STORES 6476,26/10/2021,31103484,"Supplies, Services & Other Expenses",Subsistence,Greater Manchester Combined Authority,9.58
TIMPSON LTD,26/10/2021,31103417,"Supplies, Services & Other Expenses",Subsistence,Greater Manchester Combined Authority,24.00
TOOLSTATION LTD,26/10/2021,31103236,Premises Related Expenditure,Responsive Repairs & Maintenance,Greater Manchester Combined Authority,35.50
TOOLSTATION LTD,26/10/2021,31103260,Premises Related Expenditure,Responsive Repairs & Maintenance,Greater Manchester Combined Authority,4.39
TOOLSTATION LTD,26/10/2021,31103300,Premises Related Expenditure,Responsive Repairs & Maintenance,Greater Manchester Combined Authority,142.62
TOOLSTATION LTD,26/10/2021,31103324,Premises Related Expenditure,Responsive Repairs & Maintenance,Greater Manchester Combined Authority,75.80
TOOLSTATION LTD,26/10/2021,31103367,Premises Related Expenditure,Responsive Repairs & Maintenance,Greater Manchester Combined Authority,8.98
TOOLSTATION LTD,26/10/2021,31103389,Premises Related Expenditure,Responsive Repairs & Maintenance,Greater Manchester Combined Authority,26.34
TOOLSTATION LTD,26/10/2021,31103404,Premises Related Expenditure,Responsive Repairs & Maintenance,Greater Manchester Combined Authority,40.55
TOOLSTATION LTD,26/10/2021,31103423,Premises Related Expenditure,Responsive Repairs & Maintenance,Greater Manchester Combined Authority,17.48
TOOLSTATION LTD,26/10/2021,31103426,Premises Related Expenditure,Responsive Repairs & Maintenance,Greater Manchester Combined Authority,29.98
TOOLSTATION LTD,26/10/2021,31103460,Premises Related Expenditure,Responsive Repairs & Maintenance,Greater Manchester Combined Authority,68.50
TOOLSTATION LTD,26/10/2021,31103466,Premises Related Expenditure,Responsive Repairs & Maintenance,Greater Manchester Combined Authority,71.94
TOOLSTATION LTD,26/10/2021,31103474,Premises Related Expenditure,Responsive Repairs & Maintenance,Greater Manchester Combined Authority,57.58
W WING YIP (MANCHE,26/10/2021,31103286,"Supplies, Services & Other Expenses",Food,Greater Manchester Combined Authority,12.95
W WING YIP (MANCHE,26/10/2021,31103368,"Supplies, Services & Other Expenses",Food,Greater Manchester Combined Authority,4.78
WICKES CLIFTON,26/10/2021,31103216,Premises Related Expenditure,Responsive Repairs & Maintenance,Greater Manchester Combined Authority,16.00
WICKES CLIFTON,26/10/2021,31103427,Premises Related Expenditure,Responsive Repairs & Maintenance,Greater Manchester Combined Authority,21.10
WICKES CLIFTON,26/10/2021,31103428,Premises Related Expenditure,Responsive Repairs & Maintenance,Greater Manchester Combined Authority,14.50
Amazon.co.uk 203NM9A14,27/10/2021,31097843,"Supplies, Services & Other Expenses",Stationery,Greater Manchester Combined Authority,45.12
AMZNMktplace,27/10/2021,31097836,"Supplies, Services & Other Expenses",Subsistence,Greater Manchester Combined Authority,23.97
AMZNMktplace,27/10/2021,31097919,"Supplies, Services & Other Expenses",Subsistence,Greater Manchester Combined Authority,54.60
BRE ACADEMY,27/10/2021,31101497,Indirect Employee Allowances,Devolved Training,Greater Manchester Combined Authority,462.00
DVSA,27/10/2021,31099415,"Supplies, Services & Other Expenses",Professional Fees,Greater Manchester Combined Authority,111.00
ENFORCEMENT AGENT,27/10/2021,31101458,Indirect Employee Allowances,Other Training Expenses,Greater Manchester Combined Authority,408.00
LIDL GB BURY,27/10/2021,31101594,"Supplies, Services & Other Expenses",Subsistence,Greater Manchester Combined Authority,8.66
MORETON PARK HOTEL,27/10/2021,31103382,Indirect Employee Allowances,Training Course Fees,Greater Manchester Combined Authority,500.00
UBER    EATS,27/10/2021,31099670,"Supplies, Services & Other Expenses",Subsistence,Greater Manchester Combined Authority,52.83
WWW.DOGANDPARTRIDGEINN,27/10/2021,31101407,"Supplies, Services & Other Expenses",Subsistence,Greater Manchester Combined Authority,71.95
ANIMOTO INC,28/10/2021,31099599,"Supplies, Services & Other Expenses",Advertising,Greater Manchester Combined Authority,192.00
THE YEWDALE INN,28/10/2021,31103212,"Supplies, Services & Other Expenses",Subsistence,Greater Manchester Combined Authority,62.75
NANDOS ASHTON MOSS,29/10/2021,31103264,"Supplies, Services & Other Expenses",Subsistence,Greater Manchester Combined Authority,43.40
NANDOS ASHTON MOSS,29/10/2021,31103407,"Supplies, Services & Other Expenses",Subsistence,Greater Manchester Combined Authority,2.52
AMZNMKTPLACE AMAZON.CO,30/10/2021,31103377,"Supplies, Services & Other Expenses",Fire Safety,Greater Manchester Combined Authority,205.59
AMZNMktplace,01/11/2021,31103394,"Supplies, Services & Other Expenses",Subsistence,Greater Manchester Combined Authority,32.46
Amazon.co.uk 4G0PA2VN5,01/11/2021,31103380,Transport Related Expenditure,Repairs and Maintenance - Transport,Greater Manchester Combined Authority,23.75
12 VOLT PLANET,03/11/2021,31103304,Transport Related Expenditure,Repairs and Maintenance - Transport,Greater Manchester Combined Authority,177.10
12 VOLT PLANET,03/11/2021,31103445,Transport Related Expenditure,Repairs and Maintenance - Transport,Greater Manchester Combined Authority,100.05
Amazon.co.uk 388BD6ID5,03/11/2021,31103514,Transport Related Expenditure,Repairs and Maintenance - Transport,Greater Manchester Combined Authority,34.85
AMZNMktplace,03/11/2021,31103245,Transport Related Expenditure,Repairs and Maintenance - Transport,Greater Manchester Combined Authority,22.38
AMZNMktplace,03/11/2021,31103230,Transport Related Expenditure,Repairs and Maintenance - Transport,Greater Manchester Combined Authority,10.53
Amazon.co.uk 6148I4V35,03/11/2021,31103277,Transport Related Expenditure,Repairs and Maintenance - Transport,Greater Manchester Combined Authority,7.49
Amazon.co.uk D61E02X15,03/11/2021,31103401,Transport Related Expenditure,Repairs and Maintenance - Transport,Greater Manchester Combined Authority,32.88
Amazon.co.uk DU7TC5VD5,03/11/2021,31103287,Transport Related Expenditure,Repairs and Maintenance - Transport,Greater Manchester Combined Authority,9.50
Amazon.co.uk G50ZV16S5,03/11/2021,31103478,Transport Related Expenditure,Repairs and Maintenance - Transport,Greater Manchester Combined Authority,17.46
Amazon.co.uk HF1UN0OB5,03/11/2021,31103325,Transport Related Expenditure,Repairs and Maintenance - Transport,Greater Manchester Combined Authority,27.77
Amazon.co.uk JF84Z0W85,03/11/2021,31103451,Transport Related Expenditure,Repairs and Maintenance - Transport,Greater Manchester Combined Authority,23.92
Amazon.co.uk SP7AB5TR5,03/11/2021,31103222,Transport Related Expenditure,Repairs and Maintenance - Transport,Greater Manchester Combined Authority,27.77
AMZ Amazon.co.uk,03/11/2021,31103397,Transport Related Expenditure,Repairs and Maintenance - Transport,Greater Manchester Combined Authority,-27.77
AMZNMktplace,03/11/2021,31103253,Transport Related Expenditure,Repairs and Maintenance - Transport,Greater Manchester Combined Authority,24.95
AMZNMktplace,03/11/2021,31103270,Transport Related Expenditure,Repairs and Maintenance - Transport,Greater Manchester Combined Authority,7.48
AMZNMktplace,03/11/2021,31103272,Transport Related Expenditure,Repairs and Maintenance - Transport,Greater Manchester Combined Authority,14.31
AMZNMktplace,03/11/2021,31103370,Transport Related Expenditure,Repairs and Maintenance - Transport,Greater Manchester Combined Authority,8.98
AMZNMktplace,03/11/2021,31103388,Transport Related Expenditure,Repairs and Maintenance - Transport,Greater Manchester Combined Authority,144.50
AMZNMktplace,03/11/2021,31103390,Transport Related Expenditure,Repairs and Maintenance - Transport,Greater Manchester Combined Authority,10.53
AMZNMktplace,03/11/2021,31103467,Transport Related Expenditure,Repairs and Maintenance - Transport,Greater Manchester Combined Authority,11.99
AMZNMktplace,03/11/2021,31103495,Transport Related Expenditure,Repairs and Maintenance - Transport,Greater Manchester Combined Authority,57.99
AMZNMKTPLACE AMAZON.CO,03/11/2021,31103213,Transport Related Expenditure,Repairs and Maintenance - Transport,Greater Manchester Combined Authority,16.55
AMZNMKTPLACE AMAZON.CO,03/11/2021,31103295,Transport Related Expenditure,Repairs and Maintenance - Transport,Greater Manchester Combined Authority,35.90
AMZNMKTPLACE AMAZON.CO,03/11/2021,31103329,Transport Related Expenditure,Repairs and Maintenance - Transport,Greater Manchester Combined Authority,9.99
AMZNMKTPLACE AMAZON.CO,03/11/2021,31103349,Transport Related Expenditure,Repairs and Maintenance - Transport,Greater Manchester Combined Authority,26.99
AMZNMKTPLACE AMAZON.CO,03/11/2021,31103395,Transport Related Expenditure,Repairs and Maintenance - Transport,Greater Manchester Combined Authority,18.49
AMZNMKTPLACE AMAZON.CO,03/11/2021,31103513,Transport Related Expenditure,Repairs and Maintenance - Transport,Greater Manchester Combined Authority,24.49
AMZNMKTPLACE AMAZON.CO,03/11/2021,31101480,"Supplies, Services & Other Expenses",Subsistence,Greater Manchester Combined Authority,5.99
HTTPS://WWW.JPENNYLTD.,03/11/2021,31103283,Transport Related Expenditure,Repairs and Maintenance - Transport,Greater Manchester Combined Authority,55.33
O2 PREPAY TOP-UP,03/11/2021,31103328,"Supplies, Services & Other Expenses",Other Communications Equipment,Greater Manchester Combined Authority,30.00
QUICKFIT SAFETY BELT S,03/11/2021,31103321,Transport Related Expenditure,Repairs and Maintenance - Transport,Greater Manchester Combined Authority,84.00
UPS LTD SHIPPING FEES,03/11/2021,31103415,"Supplies, Services & Other Expenses",Postage,Greater Manchester Combined Authority,169.33
WORLDWIDE RECOVERY SYS,03/11/2021,31103255,Transport Related Expenditure,Repairs and Maintenance - Transport,Greater Manchester Combined Authority,590.99
WWW.ALTECAUTOMOTIVE.CO,03/11/2021,31103284,Transport Related Expenditure,Repairs and Maintenance - Transport,Greater Manchester Combined Authority,47.27
WWW.NESTOOLS.COM,03/11/2021,31103431,Transport Related Expenditure,Repairs and Maintenance - Transport,Greater Manchester Combined Authority,28.42
WWW.PROTEX.COM,03/11/2021,31103320,Transport Related Expenditure,Repairs and Maintenance - Transport,Greater Manchester Combined Authority,200.52
Amazon Prime 4N71B16C5,04/11/2021,31103310,"Supplies, Services & Other Expenses",Periodicals & Magazines,Greater Manchester Combined Authority,7.99
AMZNMktplace,04/11/2021,31103208,"Supplies, Services & Other Expenses",Stationery,Greater Manchester Combined Authority,12.99
AMZNMktplace,04/11/2021,31103254,"Supplies, Services & Other Expenses",Stationery,Greater Manchester Combined Authority,38.20
EB  NFCC AUTUMN CONFER,04/11/2021,31103335,"Supplies, Services & Other Expenses",Conference,Greater Manchester Combined Authority,90.00
3C_ RCP Parking - Nort,05/11/2021,31103378,Transport Related Expenditure,Officers Travel & Subsistence,Greater Manchester Combined Authority,93.00
BRIGHTON SST,05/11/2021,31103363,Transport Related Expenditure,Officers Travel & Subsistence,Greater Manchester Combined Authority,26.00
DB Vertrieb GmbH,05/11/2021,31101526,Transport Related Expenditure,Officers Travel & Subsistence,Greater Manchester Combined Authority,19.36
EG VACATION RENTALS,05/11/2021,31099453,"Supplies, Services & Other Expenses",Conference,Greater Manchester Combined Authority,447.60
GORILLA,05/11/2021,31097868,"Supplies, Services & Other Expenses",Subsistence,Greater Manchester Combined Authority,91.59
Hyatt Regency,05/11/2021,31101415,"Supplies, Services & Other Expenses",Subsistence,Greater Manchester Combined Authority,575.19
Hyatt Regency,05/11/2021,31101437,"Supplies, Services & Other Expenses",Subsistence,Greater Manchester Combined Authority,143.24
MANCHESTER OXFORD ROAD,05/11/2021,31103214,Transport Related Expenditure,Officers Travel & Subsistence,Greater Manchester Combined Authority,47.40
PHILPOTTS  PORTLAND,05/11/2021,31099533,"Supplies, Services & Other Expenses",Hospitality,Greater Manchester Combined Authority,52.50
ROIG BUS,05/11/2021,31101454,Transport Related Expenditure,Officers Travel & Subsistence,Greater Manchester Combined Authority,101.83
SumUp   Britannia Taxi,05/11/2021,31103341,Transport Related Expenditure,Officers Travel & Subsistence,Greater Manchester Combined Authority,28.90
SumUp   London Taxi,05/11/2021,31103421,Transport Related Expenditure,Officers Travel & Subsistence,Greater Manchester Combined Authority,12.00
SumUp   Michael Rowe,05/11/2021,31103346,Transport Related Expenditure,Officers Travel & Subsistence,Greater Manchester Combined Authority,31.30
Vrbo HA4N9126,05/11/2021,31099424,"Supplies, Services & Other Expenses",Conference,Greater Manchester Combined Authority,511.20
WWW.LABEVENTS.ORG,05/11/2021,31101478,"Supplies, Services & Other Expenses",Conference,Greater Manchester Combined Authority,175.00
WWW.LABEVENTS.ORG,05/11/2021,31101504,"Supplies, Services & Other Expenses",Conference,Greater Manchester Combined Authority,130.00
ZOOM.US 888-799-9666,05/11/2021,31096154,"Supplies, Services & Other Expenses",Telephones,Greater Manchester Combined Authority,62.39
ZOOM.US 888-799-9666,05/11/2021,31099508,"Supplies, Services & Other Expenses",Telephones,Greater Manchester Combined Authority,62.39
ZOOM.US 888-799-9666,05/11/2021,31099539,"Supplies, Services & Other Expenses",Telephones,Greater Manchester Combined Authority,62.39
ZOOM.US 888-799-9666,05/11/2021,31101507,"Supplies, Services & Other Expenses",Telephones,Greater Manchester Combined Authority,62.39
ZOOM.US 888-799-9666,05/11/2021,31103334,"Supplies, Services & Other Expenses",Telephones,Greater Manchester Combined Authority,62.39
UBER    EATS,06/11/2021,31101488,"Supplies, Services & Other Expenses",Subsistence,Greater Manchester Combined Authority,47.02
UBER    TRIP,06/11/2021,31101584,Transport Related Expenditure,Officers Travel & Subsistence,Greater Manchester Combined Authority,4.70
AMZ fullingin,07/11/2021,31103293,Transport Related Expenditure,Repairs and Maintenance - Transport,Greater Manchester Combined Authority,-11.99
AMZNMktplace,07/11/2021,31103358,Transport Related Expenditure,Repairs and Maintenance - Transport,Greater Manchester Combined Authority,13.48
AMZNMKTPLACE AMAZON.CO,07/11/2021,31103456,Transport Related Expenditure,Repairs and Maintenance - Transport,Greater Manchester Combined Authority,18.02
FEDEX EXPRESS UK LTD,07/11/2021,31101435,"Supplies, Services & Other Expenses",Postage,Greater Manchester Combined Authority,86.53
M A HYDRAULICS LTD,07/11/2021,31103439,Transport Related Expenditure,Repairs and Maintenance - Transport,Greater Manchester Combined Authority,416.75
PARCEL MONKEY LIMITED,07/11/2021,31099439,"Supplies, Services & Other Expenses",Postage,Greater Manchester Combined Authority,7.55
PARCEL MONKEY LIMITED,07/11/2021,31101436,"Supplies, Services & Other Expenses",Postage,Greater Manchester Combined Authority,8.99
PARCEL MONKEY LIMITED,07/11/2021,31101590,"Supplies, Services & Other Expenses",Postage,Greater Manchester Combined Authority,8.58
PARCEL MONKEY LIMITED,07/11/2021,31101597,"Supplies, Services & Other Expenses",Postage,Greater Manchester Combined Authority,7.55
PARCEL MONKEY LIMITED,07/11/2021,31103360,"Supplies, Services & Other Expenses",Postage,Greater Manchester Combined Authority,7.55
PARCEL MONKEY LIMITED,07/11/2021,31103384,"Supplies, Services & Other Expenses",Postage,Greater Manchester Combined Authority,7.55
"SP   SEASUCKER, LLC",07/11/2021,31101457,Transport Related Expenditure,Repairs and Maintenance - Transport,Greater Manchester Combined Authority,356.00
Amazon.co.uk A87B96WZ5,08/11/2021,31103258,"Supplies, Services & Other Expenses",Stationery,Greater Manchester Combined Authority,22.86
Amazon.co.uk L66FI7LP5,08/11/2021,31103234,"Supplies, Services & Other Expenses",Stationery,Greater Manchester Combined Authority,54.99
AMZNMKTPLACE AMAZON.CO,08/11/2021,31103314,"Supplies, Services & Other Expenses",Cleaning Equipment,Greater Manchester Combined Authority,13.98
AMZNMKTPLACE AMAZON.CO,08/11/2021,31103339,"Supplies, Services & Other Expenses",Cleaning Equipment,Greater Manchester Combined Authority,21.98
Butty-Liscious,08/11/2021,31103411,"Supplies, Services & Other Expenses",Subsistence,Greater Manchester Combined Authority,30.00
SCREWFIX DIRECT,08/11/2021,31103348,Premises Related Expenditure,Responsive Repairs & Maintenance,Greater Manchester Combined Authority,69.90
SCREWFIX DIRECT,08/11/2021,31103366,Premises Related Expenditure,Responsive Repairs & Maintenance,Greater Manchester Combined Authority,22.62
SCREWFIX DIRECT,08/11/2021,31103381,Premises Related Expenditure,Responsive Repairs & Maintenance,Greater Manchester Combined Authority,7.19
SCREWFIX DIRECT,08/11/2021,31103422,Premises Related Expenditure,Responsive Repairs & Maintenance,Greater Manchester Combined Authority,10.87
SCREWFIX DIRECT,08/11/2021,31103425,Premises Related Expenditure,Responsive Repairs & Maintenance,Greater Manchester Combined Authority,12.99
SCREWFIX DIRECT,08/11/2021,31103444,Premises Related Expenditure,Responsive Repairs & Maintenance,Greater Manchester Combined Authority,18.25
SCREWFIX DIRECT,08/11/2021,31103461,Premises Related Expenditure,Responsive Repairs & Maintenance,Greater Manchester Combined Authority,4.92
SCREWFIX DIRECT,08/11/2021,31103487,Premises Related Expenditure,Responsive Repairs & Maintenance,Greater Manchester Combined Authority,37.55
SCREWFIX DIRECT,08/11/2021,31103493,Premises Related Expenditure,Responsive Repairs & Maintenance,Greater Manchester Combined Authority,34.99
SCREWFIX DIRECT,08/11/2021,31103262,Premises Related Expenditure,Responsive Repairs & Maintenance,Greater Manchester Combined Authority,34.61
SCREWFIX DIRECT,08/11/2021,31103268,Premises Related Expenditure,Responsive Repairs & Maintenance,Greater Manchester Combined Authority,12.78
SCREWFIX DIRECT,08/11/2021,31103271,Premises Related Expenditure,Responsive Repairs & Maintenance,Greater Manchester Combined Authority,4.49
SCREWFIX DIRECT,08/11/2021,31103282,Premises Related Expenditure,Responsive Repairs & Maintenance,Greater Manchester Combined Authority,41.44
TOOLSTATION UK,08/11/2021,31103434,Premises Related Expenditure,Responsive Repairs & Maintenance,Greater Manchester Combined Authority,9.52
TOOLSTATION UK,08/11/2021,31103503,Premises Related Expenditure,Responsive Repairs & Maintenance,Greater Manchester Combined Authority,24.48
TOOLSTATION UK,08/11/2021,31103279,Premises Related Expenditure,Responsive Repairs & Maintenance,Greater Manchester Combined Authority,1.92
WWW.JANITORIALSUPPLIES,08/11/2021,31103235,"Supplies, Services & Other Expenses",Cleaning Equipment,Greater Manchester Combined Authority,40.32
ALDI 79 773,10/11/2021,31103490,"Supplies, Services & Other Expenses",Subsistence,Greater Manchester Combined Authority,122.92
B&M 452 - HS BOLTON,10/11/2021,31103472,"Supplies, Services & Other Expenses",Subsistence,Greater Manchester Combined Authority,54.00
GORDON RIGG (NRSIES) L,10/11/2021,31099490,Premises Related Expenditure,Responsive Repairs & Maintenance,Greater Manchester Combined Authority,"1,435.00"
WM MORRISONS STORE,10/11/2021,31103318,"Supplies, Services & Other Expenses",Subsistence,Greater Manchester Combined Authority,11.13
FACEBK 5UN4W7BSB2,11/11/2021,31103365,"Supplies, Services & Other Expenses",Digital,Greater Manchester Combined Authority,125.00
MailChimp,11/11/2021,31103273,"Supplies, Services & Other Expenses",Digital,Greater Manchester Combined Authority,19.28
Amazon.co.uk PX8TC2DC5,16/11/2021,31103488,Premises Related Expenditure,Responsive Repairs & Maintenance,Greater Manchester Combined Authority,104.95
Amazon.co.uk TM1MD4905,16/11/2021,31101537,Premises Related Expenditure,Responsive Repairs & Maintenance,Greater Manchester Combined Authority,115.00
Amazon.co.uk WM68T4E55,16/11/2021,31103244,Premises Related Expenditure,Responsive Repairs & Maintenance,Greater Manchester Combined Authority,29.22
AMZNMktplace,16/11/2021,31103308,Premises Related Expenditure,Responsive Repairs & Maintenance,Greater Manchester Combined Authority,149.99
AMZNMktplace,16/11/2021,31103317,Premises Related Expenditure,Responsive Repairs & Maintenance,Greater Manchester Combined Authority,24.64
AMZNMktplace,16/11/2021,31103373,Premises Related Expenditure,Responsive Repairs & Maintenance,Greater Manchester Combined Authority,11.99
AMZNMktplace,16/11/2021,31101442,Premises Related Expenditure,Responsive Repairs & Maintenance,Greater Manchester Combined Authority,34.97
AMZNMKTPLACE AMAZON.CO,16/11/2021,31103457,Premises Related Expenditure,Responsive Repairs & Maintenance,Greater Manchester Combined Authority,48.98
B & Q 1360,16/11/2021,31103350,Premises Related Expenditure,Responsive Repairs & Maintenance,Greater Manchester Combined Authority,12.00
ELECTRIC CENTRE,16/11/2021,31101574,Premises Related Expenditure,Responsive Repairs & Maintenance,Greater Manchester Combined Authority,78.84
ELECTRIC CENTRE,16/11/2021,31103221,Premises Related Expenditure,Responsive Repairs & Maintenance,Greater Manchester Combined Authority,20.25
ELECTRIC CENTRE,16/11/2021,31103231,Premises Related Expenditure,Responsive Repairs & Maintenance,Greater Manchester Combined Authority,446.04
ELECTRIC CENTRE,16/11/2021,31103326,Premises Related Expenditure,Responsive Repairs & Maintenance,Greater Manchester Combined Authority,90.00
ELECTRIC CENTRE,16/11/2021,31103338,Premises Related Expenditure,Responsive Repairs & Maintenance,Greater Manchester Combined Authority,23.23
ELECTRIC CENTRE,16/11/2021,31103347,Premises Related Expenditure,Responsive Repairs & Maintenance,Greater Manchester Combined Authority,126.00
ELECTRIC CENTRE,16/11/2021,31103369,Premises Related Expenditure,Responsive Repairs & Maintenance,Greater Manchester Combined Authority,181.44
ELECTRIC CENTRE,16/11/2021,31103414,Premises Related Expenditure,Responsive Repairs & Maintenance,Greater Manchester Combined Authority,77.12
ELECTRIC CENTRE,16/11/2021,31103448,Premises Related Expenditure,Responsive Repairs & Maintenance,Greater Manchester Combined Authority,54.60
ELECTRIC CENTRE,16/11/2021,31103476,Premises Related Expenditure,Responsive Repairs & Maintenance,Greater Manchester Combined Authority,131.63
ELECTRIC CENTRE,16/11/2021,31103477,Premises Related Expenditure,Responsive Repairs & Maintenance,Greater Manchester Combined Authority,101.25
ELECTRIC CENTRE,16/11/2021,31103453,Premises Related Expenditure,Responsive Repairs & Maintenance,Greater Manchester Combined Authority,20.25
ELECTRIC CENTRE,16/11/2021,31103455,Premises Related Expenditure,Responsive Repairs & Maintenance,Greater Manchester Combined Authority,101.25
MFG CIVIC CENTRE FILLI,16/11/2021,31094344,Transport Related Expenditure,Fuel,Greater Manchester Combined Authority,39.01
NEWEY & EYRE,16/11/2021,31103400,Premises Related Expenditure,Responsive Repairs & Maintenance,Greater Manchester Combined Authority,282.36
NEWEY & EYRE,16/11/2021,31103239,Premises Related Expenditure,Responsive Repairs & Maintenance,Greater Manchester Combined Authority,235.30
POLE STAR PRODUCTS LTD,16/11/2021,31101532,Premises Related Expenditure,Responsive Repairs & Maintenance,Greater Manchester Combined Authority,62.88
RS COMPONENTS,16/11/2021,31103266,Premises Related Expenditure,Responsive Repairs & Maintenance,Greater Manchester Combined Authority,85.18
SAFETYBOOTSUK,16/11/2021,31103462,Premises Related Expenditure,Responsive Repairs & Maintenance,Greater Manchester Combined Authority,97.45
SCREWFIX DIRECT,16/11/2021,31103220,Premises Related Expenditure,Responsive Repairs & Maintenance,Greater Manchester Combined Authority,50.96
SNICKERSDIRECT,16/11/2021,31101371,Premises Related Expenditure,Responsive Repairs & Maintenance,Greater Manchester Combined Authority,158.95
WELCOME BREAK-KEELE,16/11/2021,31105009,"Supplies, Services & Other Expenses",Subsistence,Greater Manchester Combined Authority,18.78
WWW.JOHNLEWIS.COM,16/11/2021,31104818,"Supplies, Services & Other Expenses",Subsistence,Greater Manchester Combined Authority,26.95
ALDI 72 773,17/11/2021,31104823,"Supplies, Services & Other Expenses",Subsistence,Greater Manchester Combined Authority,7.75
COLLABOR8TE,17/11/2021,31104843,"Supplies, Services & Other Expenses",Room Hire,Greater Manchester Combined Authority,90.00
CONSERVATIVE PARTY,17/11/2021,31099540,"Supplies, Services & Other Expenses",Events,Greater Manchester Combined Authority,225.00
DATON ELECTRICAL 475,17/11/2021,31103399,Premises Related Expenditure,Responsive Repairs & Maintenance,Greater Manchester Combined Authority,10.40
ELECTRIC CENTRE,17/11/2021,31101509,Premises Related Expenditure,Responsive Repairs & Maintenance,Greater Manchester Combined Authority,464.94
FARMFOODS 399,17/11/2021,31104930,"Supplies, Services & Other Expenses",Subsistence,Greater Manchester Combined Authority,49.48
Hotel at Booking.com,17/11/2021,31105020,"Supplies, Services & Other Expenses",Subsistence,Greater Manchester Combined Authority,757.76
Hotel on Booking.com,17/11/2021,31104904,"Supplies, Services & Other Expenses",Subsistence,Greater Manchester Combined Authority,"1,833.00"
ICELAND,17/11/2021,31104784,"Supplies, Services & Other Expenses",Subsistence,Greater Manchester Combined Authority,20.20
MANCHESTER OXFORD ROAD,17/11/2021,31104963,Transport Related Expenditure,Officers Travel & Subsistence,Greater Manchester Combined Authority,123.20
SCREWFIX DIRECT,17/11/2021,31104817,Premises Related Expenditure,Responsive Repairs & Maintenance,Greater Manchester Combined Authority,59.86
SLI DO,17/11/2021,31094213,"Supplies, Services & Other Expenses",Computer Software,Greater Manchester Combined Authority,96.00
SWANS TRAVEL LTD,17/11/2021,31099436,Transport Related Expenditure,Officers Travel & Subsistence,Greater Manchester Combined Authority,195.00
SWANS TRAVEL LTD,17/11/2021,31099638,Transport Related Expenditure,Officers Travel & Subsistence,Greater Manchester Combined Authority,200.00
SWANS TRAVEL LTD,17/11/2021,31103359,Transport Related Expenditure,Officers Travel & Subsistence,Greater Manchester Combined Authority,195.00
WIGAN NW CAR PARK,17/11/2021,31105056,Transport Related Expenditure,Officers Travel & Subsistence,Greater Manchester Combined Authority,28.00
WWW.BSIGROUP.COM,17/11/2021,31097722,Premises Related Expenditure,Responsive Repairs & Maintenance,Greater Manchester Combined Authority,190.00
B & Q 1229,18/11/2021,31104788,Premises Related Expenditure,Responsive Repairs & Maintenance,Greater Manchester Combined Authority,41.80
B & Q 1229,18/11/2021,31104976,Premises Related Expenditure,Responsive Repairs & Maintenance,Greater Manchester Combined Authority,-41.80
GO INTERIORS,18/11/2021,31104838,Premises Related Expenditure,Responsive Repairs & Maintenance,Greater Manchester Combined Authority,88.55
JAMES COOKSON/STOCKPT/,18/11/2021,31104919,Premises Related Expenditure,Responsive Repairs & Maintenance,Greater Manchester Combined Authority,13.80
KEYWAYS SECURITY SYSTE,18/11/2021,31104844,Premises Related Expenditure,Responsive Repairs & Maintenance,Greater Manchester Combined Authority,116.58
NORTH WEST HARDWARE LT,18/11/2021,31104778,Premises Related Expenditure,Responsive Repairs & Maintenance,Greater Manchester Combined Authority,18.67
SCREWFIX DIR LTD,18/11/2021,31104834,Premises Related Expenditure,Responsive Repairs & Maintenance,Greater Manchester Combined Authority,49.98
SCREWFIX DIR LTD,18/11/2021,31104915,Premises Related Expenditure,Responsive Repairs & Maintenance,Greater Manchester Combined Authority,68.55
SCREWFIX DIR LTD,18/11/2021,31104958,Premises Related Expenditure,Responsive Repairs & Maintenance,Greater Manchester Combined Authority,19.98
SCREWFIX DIR LTD,18/11/2021,31104977,Premises Related Expenditure,Responsive Repairs & Maintenance,Greater Manchester Combined Authority,18.98
SCREWFIX DIR LTD,18/11/2021,31104994,Premises Related Expenditure,Responsive Repairs & Maintenance,Greater Manchester Combined Authority,32.31
SCREWFIX DIR LTD,18/11/2021,31105028,Premises Related Expenditure,Responsive Repairs & Maintenance,Greater Manchester Combined Authority,219.99
SCREWFIX DIR LTD,18/11/2021,31105038,Premises Related Expenditure,Responsive Repairs & Maintenance,Greater Manchester Combined Authority,61.80
SCREWFIX DIRECT,18/11/2021,31104766,Premises Related Expenditure,Responsive Repairs & Maintenance,Greater Manchester Combined Authority,39.96
SCREWFIX DIRECT,18/11/2021,31104959,Premises Related Expenditure,Responsive Repairs & Maintenance,Greater Manchester Combined Authority,8.99
SELCO TRADING CTR,18/11/2021,31104781,Premises Related Expenditure,Responsive Repairs & Maintenance,Greater Manchester Combined Authority,39.19
SELCO TRADING CTR,18/11/2021,31104793,Premises Related Expenditure,Responsive Repairs & Maintenance,Greater Manchester Combined Authority,5.82
SELCO TRADING CTR,18/11/2021,31104878,Premises Related Expenditure,Responsive Repairs & Maintenance,Greater Manchester Combined Authority,230.72
SELCO TRADING CTR,18/11/2021,31104917,Premises Related Expenditure,Responsive Repairs & Maintenance,Greater Manchester Combined Authority,34.14
SELCO TRADING CTR,18/11/2021,31104924,Premises Related Expenditure,Responsive Repairs & Maintenance,Greater Manchester Combined Authority,53.24
SELCO TRADING CTR,18/11/2021,31104937,Premises Related Expenditure,Responsive Repairs & Maintenance,Greater Manchester Combined Authority,150.19
SELCO TRADING CTR,18/11/2021,31104951,Premises Related Expenditure,Responsive Repairs & Maintenance,Greater Manchester Combined Authority,129.88
SELCO TRADING CTR,18/11/2021,31104968,Premises Related Expenditure,Responsive Repairs & Maintenance,Greater Manchester Combined Authority,7.26
STAX TRADE CENTRES LTD,18/11/2021,31105004,Premises Related Expenditure,Responsive Repairs & Maintenance,Greater Manchester Combined Authority,42.24
STAX TRADE CENTRES LTD,18/11/2021,31105042,Premises Related Expenditure,Responsive Repairs & Maintenance,Greater Manchester Combined Authority,67.67
TOOLSTATION UK,18/11/2021,31104944,Premises Related Expenditure,Responsive Repairs & Maintenance,Greater Manchester Combined Authority,13.98
TRAVIS PERKINS,18/11/2021,31104964,Premises Related Expenditure,Responsive Repairs & Maintenance,Greater Manchester Combined Authority,117.38
WOLSELEY UK,18/11/2021,31104988,Premises Related Expenditure,Responsive Repairs & Maintenance,Greater Manchester Combined Authority,17.58
WWW.EASYEQUIPMENT.COM,18/11/2021,31104826,Premises Related Expenditure,Responsive Repairs & Maintenance,Greater Manchester Combined Authority,247.18
MailChimp,19/11/2021,31101596,"Supplies, Services & Other Expenses",Computer Software,Greater Manchester Combined Authority,45.46
MailChimp,19/11/2021,31103459,"Supplies, Services & Other Expenses",Computer Software,Greater Manchester Combined Authority,45.68
AMZNMktplace,19/11/2021,31104884,"Supplies, Services & Other Expenses",Events,Greater Manchester Combined Authority,9.99
ASDA SUPERSTORE,19/11/2021,31104909,"Supplies, Services & Other Expenses",Subsistence,Greater Manchester Combined Authority,19.00
BRISTOL MARRIOTT ROYAL,19/11/2021,31105005,"Supplies, Services & Other Expenses",Subsistence,Greater Manchester Combined Authority,230.00
CONSERVATIVE PARTY,19/11/2021,31103265,"Supplies, Services & Other Expenses",Events,Greater Manchester Combined Authority,525.00
HOMECARE CENTRE BOLTON,19/11/2021,31105026,"Supplies, Services & Other Expenses",Subsistence,Greater Manchester Combined Authority,5.95
iZ  Acropolis stre,19/11/2021,31103408,"Supplies, Services & Other Expenses",Subsistence,Greater Manchester Combined Authority,48.00
M6 TOLL,19/11/2021,31103482,Transport Related Expenditure,Officers Travel & Subsistence,Greater Manchester Combined Authority,7.00
MailChimp,19/11/2021,31094268,"Supplies, Services & Other Expenses",Computer Software,Greater Manchester Combined Authority,45.83
MailChimp,19/11/2021,31096178,"Supplies, Services & Other Expenses",Computer Software,Greater Manchester Combined Authority,44.79
MailChimp,19/11/2021,31097823,"Supplies, Services & Other Expenses",Computer Software,Greater Manchester Combined Authority,44.97
MailChimp,19/11/2021,31099456,"Supplies, Services & Other Expenses",Computer Software,Greater Manchester Combined Authority,45.69
MailChimp,19/11/2021,31104853,"Supplies, Services & Other Expenses",Computer Software,Greater Manchester Combined Authority,46.00
MUSIC NORTH LTD,19/11/2021,31103352,Indirect Employee Allowances,Subsistence - Training,Greater Manchester Combined Authority,14.40
MUSIC NORTH LTD,19/11/2021,31103424,Indirect Employee Allowances,Subsistence - Training,Greater Manchester Combined Authority,12.05
MUSIC NORTH LTD,19/11/2021,31103447,Indirect Employee Allowances,Subsistence - Training,Greater Manchester Combined Authority,15.60
Rani Indian Restaurant,19/11/2021,31103333,"Supplies, Services & Other Expenses",Subsistence,Greater Manchester Combined Authority,118.35
SQUARESPACE INC.,19/11/2021,31103489,"Supplies, Services & Other Expenses",Computer Software,Greater Manchester Combined Authority,216.00
SWANS TRAVEL LTD,19/11/2021,31103375,Employees Pay,Agency Staff Costs,Greater Manchester Combined Authority,300.00
TESCO STORES 2142,19/11/2021,31104803,"Supplies, Services & Other Expenses",Subsistence,Greater Manchester Combined Authority,8.00
THE SPICE ROOM,19/11/2021,31103305,"Supplies, Services & Other Expenses",Subsistence,Greater Manchester Combined Authority,16.40
THE TOWN WALL,19/11/2021,31103430,"Supplies, Services & Other Expenses",Subsistence,Greater Manchester Combined Authority,72.00
UNIVERSITY OF LANCASHI,19/11/2021,31104948,Transport Related Expenditure,Officers Travel & Subsistence,Greater Manchester Combined Authority,4.00
UNIVERSITY OF LANCASHI,19/11/2021,31105017,Transport Related Expenditure,Officers Travel & Subsistence,Greater Manchester Combined Authority,4.00
UNIVERSITY OF LANCASHI,19/11/2021,31105060,Transport Related Expenditure,Officers Travel & Subsistence,Greater Manchester Combined Authority,4.00
WWW.LABEVENTS.ORG,19/11/2021,31099500,"Supplies, Services & Other Expenses",Events,Greater Manchester Combined Authority,230.00
M6 TOLL,20/11/2021,31104891,Transport Related Expenditure,Officers Travel & Subsistence,Greater Manchester Combined Authority,7.00
Turmeric Square,20/11/2021,31104886,"Supplies, Services & Other Expenses",Subsistence,Greater Manchester Combined Authority,78.15
WATERINGBURY,20/11/2021,31104998,"Supplies, Services & Other Expenses",Subsistence,Greater Manchester Combined Authority,12.79
WATERINGBURY,20/11/2021,31105048,"Supplies, Services & Other Expenses",Subsistence,Greater Manchester Combined Authority,12.49
AMZNMktplace,22/11/2021,31103440,"Supplies, Services & Other Expenses",Operational Equipment Consumables,Greater Manchester Combined Authority,7.80
AMZNMKTPLACE AMAZON.CO,22/11/2021,31104967,Premises Related Expenditure,Responsive Repairs & Maintenance,Greater Manchester Combined Authority,31.27
ELECTRIC CENTRE,22/11/2021,31103316,Premises Related Expenditure,Responsive Repairs & Maintenance,Greater Manchester Combined Authority,127.37
ELECTRIC CENTRE,22/11/2021,31104822,Premises Related Expenditure,Responsive Repairs & Maintenance,Greater Manchester Combined Authority,206.37
ELECTRIC CENTRE,22/11/2021,31104954,Premises Related Expenditure,Responsive Repairs & Maintenance,Greater Manchester Combined Authority,85.50
ELECTRIC CENTRE,22/11/2021,31103224,Premises Related Expenditure,Responsive Repairs & Maintenance,Greater Manchester Combined Authority,257.82
ELECTRIC CENTRE,22/11/2021,31103238,Premises Related Expenditure,Responsive Repairs & Maintenance,Greater Manchester Combined Authority,201.26
ELECTRIC CENTRE,22/11/2021,31104762,Premises Related Expenditure,Responsive Repairs & Maintenance,Greater Manchester Combined Authority,73.26
ELECTRIC CENTRE,22/11/2021,31104835,Premises Related Expenditure,Responsive Repairs & Maintenance,Greater Manchester Combined Authority,198.97
ELECTRIC CENTRE,22/11/2021,31104839,Premises Related Expenditure,Responsive Repairs & Maintenance,Greater Manchester Combined Authority,154.16
ELECTRIC CENTRE,22/11/2021,31104845,Premises Related Expenditure,Responsive Repairs & Maintenance,Greater Manchester Combined Authority,389.46
ELECTRIC CENTRE,22/11/2021,31104865,Premises Related Expenditure,Responsive Repairs & Maintenance,Greater Manchester Combined Authority,122.40
ELECTRIC CENTRE,22/11/2021,31105000,Premises Related Expenditure,Responsive Repairs & Maintenance,Greater Manchester Combined Authority,31.80
ELECTRIC CENTRE,22/11/2021,31105013,Premises Related Expenditure,Responsive Repairs & Maintenance,Greater Manchester Combined Authority,159.90
ELECTRIC CENTRE,22/11/2021,31105040,Premises Related Expenditure,Responsive Repairs & Maintenance,Greater Manchester Combined Authority,173.51
ELECTRIC CENTRE,22/11/2021,31105063,Premises Related Expenditure,Responsive Repairs & Maintenance,Greater Manchester Combined Authority,63.14
NCP MANCHESTER OXFFORD,22/11/2021,31097760,Transport Related Expenditure,Officers Travel & Subsistence,Greater Manchester Combined Authority,7.00
SCREWFIX DIR LTD,22/11/2021,31104809,Premises Related Expenditure,Responsive Repairs & Maintenance,Greater Manchester Combined Authority,47.98
SCREWFIX DIR LTD,22/11/2021,31104987,Premises Related Expenditure,Responsive Repairs & Maintenance,Greater Manchester Combined Authority,60.04
SUPERLEC,22/11/2021,31104953,Premises Related Expenditure,Responsive Repairs & Maintenance,Greater Manchester Combined Authority,133.02
WM MORRISONS STORE,22/11/2021,31103327,"Supplies, Services & Other Expenses",Subsistence,Greater Manchester Combined Authority,5.75
WM MORRISONS STORE,22/11/2021,31103391,"Supplies, Services & Other Expenses",Subsistence,Greater Manchester Combined Authority,4.90
WWW.CATERKWIK.CO.UK,22/11/2021,31104754,Premises Related Expenditure,Responsive Repairs & Maintenance,Greater Manchester Combined Authority,285.48
WWW.LINCAT.CO.UK,22/11/2021,31104938,Premises Related Expenditure,Responsive Repairs & Maintenance,Greater Manchester Combined Authority,167.94
Amazon Prime U53NH9865,23/11/2021,31104862,"Supplies, Services & Other Expenses",Periodicals & Magazines,Greater Manchester Combined Authority,7.99
AMZNMktplace,23/11/2021,31104890,"Supplies, Services & Other Expenses",Stationery,Greater Manchester Combined Authority,12.99
EB  FIRE 2021,23/11/2021,31104850,"Supplies, Services & Other Expenses",Conference,Greater Manchester Combined Authority,300.00
MAJESTIC WINE,23/11/2021,31103464,"Supplies, Services & Other Expenses",Subsistence,Greater Manchester Combined Authority,389.64
MAJESTIC WINE,23/11/2021,31104759,"Supplies, Services & Other Expenses",Subsistence,Greater Manchester Combined Authority,-144.00
MORETON PARK HOTEL,23/11/2021,31103502,"Supplies, Services & Other Expenses",Subsistence,Greater Manchester Combined Authority,375.00
ROSES N POSIES,23/11/2021,31103281,"Supplies, Services & Other Expenses",Subsistence,Greater Manchester Combined Authority,483.92
Trainline.COM,23/11/2021,31104765,Transport Related Expenditure,Officers Travel & Subsistence,Greater Manchester Combined Authority,426.69
Amazon.co.uk GJ1JS6055,24/11/2021,31104783,"Supplies, Services & Other Expenses",Stationery,Greater Manchester Combined Authority,25.49
AMZNMktplace,24/11/2021,31104870,"Supplies, Services & Other Expenses",Kitchen Equipment,Greater Manchester Combined Authority,69.99
AMZNMktplace,24/11/2021,31104833,"Supplies, Services & Other Expenses",Cleaning Equipment,Greater Manchester Combined Authority,25.98
FACEBK 4PK2S77SB2,24/11/2021,31104989,"Supplies, Services & Other Expenses",Digital,Greater Manchester Combined Authority,357.39
FACEBK ZPUNT6FRB2,24/11/2021,31104792,"Supplies, Services & Other Expenses",Digital,Greater Manchester Combined Authority,400.00
iZ  NIALL S KITCHE,24/11/2021,31105032,"Supplies, Services & Other Expenses",Subsistence,Greater Manchester Combined Authority,108.90
MailChimp,25/11/2021,31104819,"Supplies, Services & Other Expenses",Digital,Greater Manchester Combined Authority,19.54
AMZNMktplace,26/11/2021,31101558,"Supplies, Services & Other Expenses",Subsistence,Greater Manchester Combined Authority,19.77
NCP MANCHESTER G-MEX (,26/11/2021,31104787,Transport Related Expenditure,Officers Travel & Subsistence,Greater Manchester Combined Authority,10.50
AMZNMktplace,27/11/2021,31103269,"Supplies, Services & Other Expenses",Office Equipment,Greater Manchester Combined Authority,75.78
APPLE.COM/UK,27/11/2021,31101501,"Supplies, Services & Other Expenses",Subsistence,Greater Manchester Combined Authority,350.00
APPLE.COM/UK,27/11/2021,31101582,"Supplies, Services & Other Expenses",Subsistence,Greater Manchester Combined Authority,350.00
ASDA SUPERSTORE,27/11/2021,31103274,"Supplies, Services & Other Expenses",Subsistence,Greater Manchester Combined Authority,9.90
TESCO STORES 5731,27/11/2021,31104767,"Supplies, Services & Other Expenses",Subsistence,Greater Manchester Combined Authority,44.20
TESCO STORES 5731,27/11/2021,31103342,"Supplies, Services & Other Expenses",Subsistence,Greater Manchester Combined Authority,13.49
TESCO STORES 6025,27/11/2021,31103210,"Supplies, Services & Other Expenses",Subsistence,Greater Manchester Combined Authority,6.00
1 AND 1 IONOS LTD,29/11/2021,31104893,"Supplies, Services & Other Expenses",Computer Software,Greater Manchester Combined Authority,285.34
1 AND 1 IONOS LTD,29/11/2021,31104941,"Supplies, Services & Other Expenses",Computer Software,Greater Manchester Combined Authority,86.74
ABERDEEN GRILL & KEBAB,29/11/2021,31104897,"Supplies, Services & Other Expenses",Subsistence,Greater Manchester Combined Authority,30.00
Adobe.com,29/11/2021,31099543,"Supplies, Services & Other Expenses",Computer Software,Greater Manchester Combined Authority,216.00
Amazon.co.uk 5051P3865,29/11/2021,31103436,"Supplies, Services & Other Expenses",Computer Hardware,Greater Manchester Combined Authority,31.99
Amazon.co.uk IG3L39XW5,29/11/2021,31105002,"Supplies, Services & Other Expenses",Computer Hardware,Greater Manchester Combined Authority,54.99
Amazon.co.uk ZR7IX8CA5,29/11/2021,31099563,"Supplies, Services & Other Expenses",Stationery,Greater Manchester Combined Authority,4.99
AMZN Mktp UK 2H2S50RF5,29/11/2021,31099460,"Supplies, Services & Other Expenses",Computer Hardware,Greater Manchester Combined Authority,190.30
AMZNMktplace,29/11/2021,31099526,"Supplies, Services & Other Expenses",Stationery,Greater Manchester Combined Authority,11.99
AMZNMktplace,29/11/2021,31103299,"Supplies, Services & Other Expenses",Computer Hardware,Greater Manchester Combined Authority,19.99
AMZNMktplace,29/11/2021,31104888,"Supplies, Services & Other Expenses",Computer Hardware,Greater Manchester Combined Authority,17.89
B & Q 1057,29/11/2021,31104880,Premises Related Expenditure,Responsive Repairs & Maintenance,Greater Manchester Combined Authority,9.97
BOOLES TOOLS&PIPE FTTN,29/11/2021,31105001,Premises Related Expenditure,Responsive Repairs & Maintenance,Greater Manchester Combined Authority,146.72
CITY PLUMBING,29/11/2021,31104984,Premises Related Expenditure,Responsive Repairs & Maintenance,Greater Manchester Combined Authority,5.59
CROWN DECORATING CENTR,29/11/2021,31104854,Premises Related Expenditure,Responsive Repairs & Maintenance,Greater Manchester Combined Authority,72.60
CURRYS OLDHAM,29/11/2021,31104920,"Supplies, Services & Other Expenses",Operational Equipment Consumables,Greater Manchester Combined Authority,39.98
EB  DIGITAL LEADERS 10,29/11/2021,31104969,Transport Related Expenditure,Officers Travel & Subsistence,Greater Manchester Combined Authority,417.12
FIRE 2000 LTD,29/11/2021,31104913,Premises Related Expenditure,Responsive Repairs & Maintenance,Greater Manchester Combined Authority,68.40
GEORGE HILL OLDHAM LIM,29/11/2021,31105027,Premises Related Expenditure,Responsive Repairs & Maintenance,Greater Manchester Combined Authority,145.93
GEORGE HILL OLDHAM LIM,29/11/2021,31104771,Premises Related Expenditure,Responsive Repairs & Maintenance,Greater Manchester Combined Authority,262.46
GEORGE HILL OLDHAM LIM,29/11/2021,31104978,Premises Related Expenditure,Responsive Repairs & Maintenance,Greater Manchester Combined Authority,159.34
GEORGE HILL OLDHAM LIM,29/11/2021,31105012,Premises Related Expenditure,Responsive Repairs & Maintenance,Greater Manchester Combined Authority,135.00
GREATER MANCHESTER COM,29/11/2021,31104799,"Supplies, Services & Other Expenses",Computer Software,Greater Manchester Combined Authority,-1.00
GREATER MANCHESTER COM,29/11/2021,31104832,"Supplies, Services & Other Expenses",Computer Software,Greater Manchester Combined Authority,1.00
GREATER MANCHESTER COM,29/11/2021,31104911,"Supplies, Services & Other Expenses",Computer Software,Greater Manchester Combined Authority,1.00
GREATER MANCHESTER COM,29/11/2021,31104996,"Supplies, Services & Other Expenses",Computer Software,Greater Manchester Combined Authority,-1.00
MONARCH SHELVING LTD,29/11/2021,31104965,Premises Related Expenditure,Responsive Repairs & Maintenance,Greater Manchester Combined Authority,168.00
MUR-FIX LTD,29/11/2021,31104842,Premises Related Expenditure,Responsive Repairs & Maintenance,Greater Manchester Combined Authority,97.00
MUR-FIX LTD,29/11/2021,31104922,Premises Related Expenditure,Responsive Repairs & Maintenance,Greater Manchester Combined Authority,45.79
MUR-FIX LTD,29/11/2021,31104764,Premises Related Expenditure,Responsive Repairs & Maintenance,Greater Manchester Combined Authority,74.27
MUR-FIX LTD,29/11/2021,31105023,Premises Related Expenditure,Responsive Repairs & Maintenance,Greater Manchester Combined Authority,59.66
PREMIER INN44521600,29/11/2021,31104837,"Supplies, Services & Other Expenses",Subsistence,Greater Manchester Combined Authority,6.00
QUEEN ANNE GLASS LIMIT,29/11/2021,31104993,Premises Related Expenditure,Responsive Repairs & Maintenance,Greater Manchester Combined Authority,110.00
SCREWFIX DIR LTD,29/11/2021,31104936,Premises Related Expenditure,Responsive Repairs & Maintenance,Greater Manchester Combined Authority,14.36
SCREWFIX DIR LTD,29/11/2021,31105050,Premises Related Expenditure,Responsive Repairs & Maintenance,Greater Manchester Combined Authority,17.95
SCREWFIX DIR LTD,29/11/2021,31104798,Premises Related Expenditure,Responsive Repairs & Maintenance,Greater Manchester Combined Authority,12.16
SCREWFIX DIR LTD,29/11/2021,31104877,Premises Related Expenditure,Responsive Repairs & Maintenance,Greater Manchester Combined Authority,30.99
SCREWFIX DIR LTD,29/11/2021,31104907,Premises Related Expenditure,Responsive Repairs & Maintenance,Greater Manchester Combined Authority,30.99
SCREWFIX DIR LTD,29/11/2021,31105008,Premises Related Expenditure,Responsive Repairs & Maintenance,Greater Manchester Combined Authority,26.99
SOUTHWAITE N/E BK,29/11/2021,31104869,"Supplies, Services & Other Expenses",Subsistence,Greater Manchester Combined Authority,26.55
SUEZ SALFORD ROAD BIO,29/11/2021,31104874,Premises Related Expenditure,Waste Site Programmed,Greater Manchester Combined Authority,110.02
SurveyMonkey,29/11/2021,31099585,"Supplies, Services & Other Expenses",Computer Software,Greater Manchester Combined Authority,99.00
THE LEARN AND PERFOR I,29/11/2021,31104790,"Supplies, Services & Other Expenses",Computer Software,Greater Manchester Combined Authority,127.50
The Old Pier Coffee Ho,29/11/2021,31104979,"Supplies, Services & Other Expenses",Subsistence,Greater Manchester Combined Authority,9.00
TOOLSTATION LTD,29/11/2021,31104935,Premises Related Expenditure,Responsive Repairs & Maintenance,Greater Manchester Combined Authority,91.86
TOOLSTATION LTD,29/11/2021,31104943,Premises Related Expenditure,Responsive Repairs & Maintenance,Greater Manchester Combined Authority,57.35
TOOLSTATION LTD,29/11/2021,31104945,Premises Related Expenditure,Responsive Repairs & Maintenance,Greater Manchester Combined Authority,20.22
TOOLSTATION LTD,29/11/2021,31104952,Premises Related Expenditure,Responsive Repairs & Maintenance,Greater Manchester Combined Authority,78.12
TOOLSTATION LTD,29/11/2021,31104966,Premises Related Expenditure,Responsive Repairs & Maintenance,Greater Manchester Combined Authority,115.96
TOOLSTATION LTD,29/11/2021,31105053,Premises Related Expenditure,Responsive Repairs & Maintenance,Greater Manchester Combined Authority,24.98
W WING YIP (MANCHE,29/11/2021,31105043,"Supplies, Services & Other Expenses",Food,Greater Manchester Combined Authority,22.90
W WING YIP (MANCHE,29/11/2021,31105061,"Supplies, Services & Other Expenses",Food,Greater Manchester Combined Authority,12.28
WICKES CLIFTON,29/11/2021,31105029,Premises Related Expenditure,Responsive Repairs & Maintenance,Greater Manchester Combined Authority,76.00
WICKES CLIFTON,29/11/2021,31104986,Premises Related Expenditure,Responsive Repairs & Maintenance,Greater Manchester Combined Authority,40.00
WM MORRISONS STORE,29/11/2021,31104825,"Supplies, Services & Other Expenses",Food,Greater Manchester Combined Authority,9.00
WWW.DEVSCOPE.NET,29/11/2021,31104933,"Supplies, Services & Other Expenses",Computer Software,Greater Manchester Combined Authority,353.30
Amazon Prime UE1AR7Z45,30/11/2021,31104841,"Supplies, Services & Other Expenses",Periodicals & Magazines,Greater Manchester Combined Authority,7.99
AMZNMktplace,30/11/2021,31104983,"Supplies, Services & Other Expenses",Stationery,Greater Manchester Combined Authority,18.88
AMZNMktplace,30/11/2021,31104812,"Supplies, Services & Other Expenses",Computer Hardware,Greater Manchester Combined Authority,788.08
AMZNMKTPLACE AMAZON.CO,30/11/2021,31099610,"Supplies, Services & Other Expenses",Computer Hardware,Greater Manchester Combined Authority,832.53
CO-OP GROUP 108196,30/11/2021,31104932,"Supplies, Services & Other Expenses",Subsistence,Greater Manchester Combined Authority,12.10
CO-OP GROUP 108196,30/11/2021,31104940,"Supplies, Services & Other Expenses",Subsistence,Greater Manchester Combined Authority,5.80
EASYJET00 000K2LK9WG,30/11/2021,31104921,Transport Related Expenditure,Officers Travel & Subsistence,Greater Manchester Combined Authority,19.99
FACEBK  6L87X37K42,30/11/2021,31097713,"Supplies, Services & Other Expenses",Advertising,Greater Manchester Combined Authority,3.00
FACEBK  CGQ9W2TJ42,30/11/2021,31096235,"Supplies, Services & Other Expenses",Advertising,Greater Manchester Combined Authority,17.00
FACEBK  TLA9C479A2,30/11/2021,31099534,"Supplies, Services & Other Expenses",Communications,Greater Manchester Combined Authority,54.66
FACEBK FF8A6579A2,30/11/2021,31101578,"Supplies, Services & Other Expenses",Subscriptions,Greater Manchester Combined Authority,30.00
GEAR4MUSIC,30/11/2021,31104928,"Supplies, Services & Other Expenses",Computer Hardware,Greater Manchester Combined Authority,300.44
iStock.com,30/11/2021,31101554,"Supplies, Services & Other Expenses",Subscriptions,Greater Manchester Combined Authority,900.00
KRYSTAL-1155777,30/11/2021,31099441,"Supplies, Services & Other Expenses",Computer Software,Greater Manchester Combined Authority,71.94
KRYSTAL-1156434,30/11/2021,31099669,"Supplies, Services & Other Expenses",Computer Software,Greater Manchester Combined Authority,9.59
KRYSTAL-1171444,30/11/2021,31101455,"Supplies, Services & Other Expenses",Computer Software,Greater Manchester Combined Authority,14.39
KRYSTAL-1181476,30/11/2021,31101444,"Supplies, Services & Other Expenses",Computer Software,Greater Manchester Combined Authority,119.99
KRYSTAL-1187428,30/11/2021,31103303,"Supplies, Services & Other Expenses",Computer Software,Greater Manchester Combined Authority,9.59
KRYSTAL-1188052,30/11/2021,31103480,"Supplies, Services & Other Expenses",Computer Software,Greater Manchester Combined Authority,38.37
KRYSTAL-1204216,30/11/2021,31103218,"Supplies, Services & Other Expenses",Computer Software,Greater Manchester Combined Authority,19.18
KRYSTAL-1207595,30/11/2021,31103229,"Supplies, Services & Other Expenses",Computer Software,Greater Manchester Combined Authority,14.39
KRYSTAL-1208281,30/11/2021,31103223,"Supplies, Services & Other Expenses",Computer Software,Greater Manchester Combined Authority,14.39
KRYSTAL-1213967,30/11/2021,31103508,"Supplies, Services & Other Expenses",Computer Software,Greater Manchester Combined Authority,14.39
KRYSTAL-1215369,30/11/2021,31103243,"Supplies, Services & Other Expenses",Computer Software,Greater Manchester Combined Authority,19.18
KRYSTAL-1218764,30/11/2021,31103241,"Supplies, Services & Other Expenses",Computer Software,Greater Manchester Combined Authority,14.39
KRYSTAL-1225056,30/11/2021,31104882,"Supplies, Services & Other Expenses",Computer Software,Greater Manchester Combined Authority,9.59
MailChimp,30/11/2021,31101420,"Supplies, Services & Other Expenses",Subscriptions,Greater Manchester Combined Authority,7.29
MailChimp,30/11/2021,31101392,"Supplies, Services & Other Expenses",Subscriptions,Greater Manchester Combined Authority,29.89
MailChimp,30/11/2021,31099566,"Supplies, Services & Other Expenses",Subscriptions,Greater Manchester Combined Authority,65.53
MailChimp,30/11/2021,31101500,"Supplies, Services & Other Expenses",Subscriptions,Greater Manchester Combined Authority,65.94
MailChimp,30/11/2021,31103252,"Supplies, Services & Other Expenses",Subscriptions,Greater Manchester Combined Authority,66.76
MailChimp,30/11/2021,31103242,"Supplies, Services & Other Expenses",Subscriptions,Greater Manchester Combined Authority,8.85
MailChimp,30/11/2021,31103449,"Supplies, Services & Other Expenses",Subscriptions,Greater Manchester Combined Authority,125.10
MailChimp,30/11/2021,31103386,"Supplies, Services & Other Expenses",Subscriptions,Greater Manchester Combined Authority,30.74
MailChimp,30/11/2021,31103337,"Supplies, Services & Other Expenses",Subscriptions,Greater Manchester Combined Authority,7.44
MailChimp,30/11/2021,31104848,"Supplies, Services & Other Expenses",Subscriptions,Greater Manchester Combined Authority,67.06
MailChimp,30/11/2021,31104828,"Supplies, Services & Other Expenses",Subscriptions,Greater Manchester Combined Authority,8.77
MailChimp,30/11/2021,31104981,"Supplies, Services & Other Expenses",Subscriptions,Greater Manchester Combined Authority,122.09
MailChimp,30/11/2021,31104985,"Supplies, Services & Other Expenses",Subscriptions,Greater Manchester Combined Authority,30.35
MailChimp,30/11/2021,31104910,"Supplies, Services & Other Expenses",Subscriptions,Greater Manchester Combined Authority,7.47
MailChimp,30/11/2021,31099660,"Supplies, Services & Other Expenses",Communications,Greater Manchester Combined Authority,29.77
MailChimp,30/11/2021,31099473,"Supplies, Services & Other Expenses",Computer Software,Greater Manchester Combined Authority,7.25
METAL MANIA,30/11/2021,31104992,Transport Related Expenditure,Repairs and Maintenance - Transport,Greater Manchester Combined Authority,15.45
PAYPAL  GREYGATECHE,30/11/2021,31104883,Premises Related Expenditure,Responsive Repairs & Maintenance,Greater Manchester Combined Authority,60.44
POWTOON.COM,30/11/2021,31099675,"Supplies, Services & Other Expenses",Subscriptions,Greater Manchester Combined Authority,176.72
POWTOON.COM,30/11/2021,31101428,"Supplies, Services & Other Expenses",Subscriptions,Greater Manchester Combined Authority,176.02
POWTOON.COM,30/11/2021,31103402,"Supplies, Services & Other Expenses",Computer Software,Greater Manchester Combined Authority,176.83
POWTOON.COM,30/11/2021,31103403,"Supplies, Services & Other Expenses",Computer Software,Greater Manchester Combined Authority,-177.13
POWTOON.COM,30/11/2021,31103499,"Supplies, Services & Other Expenses",Computer Software,Greater Manchester Combined Authority,-177.13
PREMIER INN44530655,30/11/2021,31104901,"Supplies, Services & Other Expenses",Subsistence,Greater Manchester Combined Authority,15.49
SHUTTERSTOCK IRELAND L,30/11/2021,31103290,"Supplies, Services & Other Expenses",Subscriptions,Greater Manchester Combined Authority,139.00
SHUTTERSTOCK IRELAND L,30/11/2021,31103512,"Supplies, Services & Other Expenses",Subscriptions,Greater Manchester Combined Authority,166.80
SP   PIPEWORK SUPPLIER,30/11/2021,31104990,Transport Related Expenditure,Repairs and Maintenance - Transport,Greater Manchester Combined Authority,18.24
STORY BLOCKSAUDIO,30/11/2021,31101543,"Supplies, Services & Other Expenses",Subscriptions,Greater Manchester Combined Authority,11.23
STORY BLOCKSAUDIO,30/11/2021,31103313,"Supplies, Services & Other Expenses",Subscriptions,Greater Manchester Combined Authority,11.37
STORY BLOCKSAUDIO,30/11/2021,31104885,"Supplies, Services & Other Expenses",Subscriptions,Greater Manchester Combined Authority,11.48
The Food Hut,30/11/2021,31105049,"Supplies, Services & Other Expenses",Subsistence,Greater Manchester Combined Authority,25.30
The Food Hut,30/11/2021,31104752,"Supplies, Services & Other Expenses",Subsistence,Greater Manchester Combined Authority,22.30
WEX PHOTOGRAPHIC,30/11/2021,31104769,"Supplies, Services & Other Expenses",Computer Hardware,Greater Manchester Combined Authority,29.00
WEX PHOTOGRAPHIC,30/11/2021,31105047,"Supplies, Services & Other Expenses",Computer Hardware,Greater Manchester Combined Authority,387.00
FIREPRO,01/12/2021,31104791,"Supplies, Services & Other Expenses",Subsistence,Greater Manchester Combined Authority,299.00
METROLINK TVM,01/12/2021,31101487,Transport Related Expenditure,Officers Travel & Subsistence,Greater Manchester Combined Authority,6.10
ADVERC B.M. LTD,02/12/2021,31105036,Transport Related Expenditure,Repairs and Maintenance - Transport,Greater Manchester Combined Authority,468.00
ALTEC SALES & SERVICE,02/12/2021,31105003,Transport Related Expenditure,Repairs and Maintenance - Transport,Greater Manchester Combined Authority,79.19
Amazon.co.uk 0L97Y4F45,02/12/2021,31104813,Transport Related Expenditure,Repairs and Maintenance - Transport,Greater Manchester Combined Authority,6.10
Amazon.co.uk 3Y2S733Z5,02/12/2021,31104923,Transport Related Expenditure,Repairs and Maintenance - Transport,Greater Manchester Combined Authority,9.91
Amazon.co.uk 6C8U310D5,02/12/2021,31104939,Transport Related Expenditure,Repairs and Maintenance - Transport,Greater Manchester Combined Authority,16.00
AMZNMktplace,02/12/2021,31104755,Transport Related Expenditure,Repairs and Maintenance - Transport,Greater Manchester Combined Authority,10.99
AMZNMktplace,02/12/2021,31104761,Transport Related Expenditure,Repairs and Maintenance - Transport,Greater Manchester Combined Authority,22.49
AMZNMktplace,02/12/2021,31104805,Transport Related Expenditure,Repairs and Maintenance - Transport,Greater Manchester Combined Authority,23.23
AMZNMktplace,02/12/2021,31104806,Transport Related Expenditure,Repairs and Maintenance - Transport,Greater Manchester Combined Authority,12.64
AMZNMktplace,02/12/2021,31104810,Transport Related Expenditure,Repairs and Maintenance - Transport,Greater Manchester Combined Authority,28.20
AMZNMktplace,02/12/2021,31104849,Transport Related Expenditure,Repairs and Maintenance - Transport,Greater Manchester Combined Authority,10.89
AMZNMktplace,02/12/2021,31104868,Transport Related Expenditure,Repairs and Maintenance - Transport,Greater Manchester Combined Authority,8.30
AMZNMktplace,02/12/2021,31104872,Transport Related Expenditure,Repairs and Maintenance - Transport,Greater Manchester Combined Authority,40.90
AMZNMktplace,02/12/2021,31104892,Transport Related Expenditure,Repairs and Maintenance - Transport,Greater Manchester Combined Authority,23.50
AMZNMktplace,02/12/2021,31104895,Transport Related Expenditure,Repairs and Maintenance - Transport,Greater Manchester Combined Authority,73.50
AMZNMktplace,02/12/2021,31104914,Transport Related Expenditure,Repairs and Maintenance - Transport,Greater Manchester Combined Authority,10.01
AMZNMktplace,02/12/2021,31104972,Transport Related Expenditure,Repairs and Maintenance - Transport,Greater Manchester Combined Authority,23.23
AMZNMktplace,02/12/2021,31104980,Transport Related Expenditure,Repairs and Maintenance - Transport,Greater Manchester Combined Authority,17.92
AMZNMktplace,02/12/2021,31105041,Transport Related Expenditure,Repairs and Maintenance - Transport,Greater Manchester Combined Authority,22.50
AMZNMktplace,02/12/2021,31104768,Premises Related Expenditure,Responsive Repairs & Maintenance,Greater Manchester Combined Authority,675.00
AMZNMKTPLACE AMAZON.CO,02/12/2021,31104750,Transport Related Expenditure,Repairs and Maintenance - Transport,Greater Manchester Combined Authority,9.28
AMZNMKTPLACE AMAZON.CO,02/12/2021,31104757,Transport Related Expenditure,Repairs and Maintenance - Transport,Greater Manchester Combined Authority,17.84
AMZNMKTPLACE AMAZON.CO,02/12/2021,31104779,Transport Related Expenditure,Repairs and Maintenance - Transport,Greater Manchester Combined Authority,6.99
AMZNMKTPLACE AMAZON.CO,02/12/2021,31104782,Transport Related Expenditure,Repairs and Maintenance - Transport,Greater Manchester Combined Authority,25.99
AMZNMKTPLACE AMAZON.CO,02/12/2021,31104795,Transport Related Expenditure,Repairs and Maintenance - Transport,Greater Manchester Combined Authority,25.99
DUN-BRI SERVICES LTD,02/12/2021,31104991,Transport Related Expenditure,Repairs and Maintenance - Transport,Greater Manchester Combined Authority,11.18
ESSENTIAL COMPANY,02/12/2021,31104934,Transport Related Expenditure,Repairs and Maintenance - Transport,Greater Manchester Combined Authority,27.95
HAZCHEM SAFETY LTD,02/12/2021,31104753,Transport Related Expenditure,Repairs and Maintenance - Transport,Greater Manchester Combined Authority,34.52
LEISURE HEATING LT,02/12/2021,31104925,Transport Related Expenditure,Repairs and Maintenance - Transport,Greater Manchester Combined Authority,52.00
MCCORMICK TOOLS LTD,02/12/2021,31104855,Transport Related Expenditure,Repairs and Maintenance - Transport,Greater Manchester Combined Authority,48.26
PARRS,02/12/2021,31104866,Transport Related Expenditure,Repairs and Maintenance - Transport,Greater Manchester Combined Authority,310.80
R S G ENGINEERING LTD,02/12/2021,31104889,Transport Related Expenditure,Repairs and Maintenance - Transport,Greater Manchester Combined Authority,167.93
ROZONE LTD,02/12/2021,31104912,Transport Related Expenditure,Repairs and Maintenance - Transport,Greater Manchester Combined Authority,124.14
S3I LTD,02/12/2021,31104908,Transport Related Expenditure,Repairs and Maintenance - Transport,Greater Manchester Combined Authority,251.22
UPS LTD SHIPPING FEES,02/12/2021,31105022,"Supplies, Services & Other Expenses",Postage,Greater Manchester Combined Authority,"1,266.75"
WWW.HARDWAREXPRESS,02/12/2021,31104896,Transport Related Expenditure,Repairs and Maintenance - Transport,Greater Manchester Combined Authority,24.94
BSI STANDARDS LTD,06/12/2021,31104794,"Supplies, Services & Other Expenses",Stationery,Greater Manchester Combined Authority,32.00
Amazon.co.uk PK1HM7H15,07/12/2021,31104881,"Supplies, Services & Other Expenses",Stationery,Greater Manchester Combined Authority,12.39
B & Q 1279,07/12/2021,31104898,"Supplies, Services & Other Expenses",Operational Equipment Consumables,Greater Manchester Combined Authority,37.00
CURRYS ONLINE,07/12/2021,31104929,Premises Related Expenditure,Fixtures & Fittings,Greater Manchester Combined Authority,369.99
WM MORRISONS STORE,07/12/2021,31105019,"Supplies, Services & Other Expenses",Subsistence,Greater Manchester Combined Authority,18.30
ASDA SUPERSTORE,08/12/2021,31104756,"Supplies, Services & Other Expenses",Food,Greater Manchester Combined Authority,74.00
SCREWFIX DIR LTD,08/12/2021,31101506,Premises Related Expenditure,Responsive Repairs & Maintenance,Greater Manchester Combined Authority,34.88
Amazon.co.uk 4E2QC8EI5,10/12/2021,31105044,Transport Related Expenditure,Repairs and Maintenance - Transport,Greater Manchester Combined Authority,14.94
ARCO ASHTON UNDER LYNE,14/12/2021,31105018,Premises Related Expenditure,Responsive Repairs & Maintenance,Greater Manchester Combined Authority,129.28
B&M 575 - CROSTONS,14/12/2021,31103458,"Supplies, Services & Other Expenses",Subsistence,Greater Manchester Combined Authority,9.54
ROSES N POSIES,14/12/2021,31104824,"Supplies, Services & Other Expenses",Subsistence,Greater Manchester Combined Authority,435.65
TESCO STORES 2142,14/12/2021,31103470,"Supplies, Services & Other Expenses",Subsistence,Greater Manchester Combined Authority,10.95
TESCO STORES 2142,14/12/2021,31104773,"Supplies, Services & Other Expenses",Subsistence,Greater Manchester Combined Authority,23.56
Amazon.co.uk 8E5N22G45,15/12/2021,31104797,"Supplies, Services & Other Expenses",Stationery,Greater Manchester Combined Authority,29.99
AMZNMktplace,15/12/2021,31104851,"Supplies, Services & Other Expenses",Stationery,Greater Manchester Combined Authority,56.97
Amazon Prime 464L94265,20/12/2021,31104770,"Supplies, Services & Other Expenses",Stationery,Greater Manchester Combined Authority,7.99
Amazon Prime NT76E1835,20/12/2021,31101491,"Supplies, Services & Other Expenses",Stationery,Greater Manchester Combined Authority,7.99
Amazon Prime RB38H1AR5,20/12/2021,31103340,"Supplies, Services & Other Expenses",Stationery,Greater Manchester Combined Authority,7.99
Amazon.co.uk 2N8TD1JH4,20/12/2021,31104780,"Supplies, Services & Other Expenses",Stationery,Greater Manchester Combined Authority,9.03
AMZNMKTPLACE AMAZON.CO,20/12/2021,31103355,"Supplies, Services & Other Expenses",Stationery,Greater Manchester Combined Authority,11.99
DVSA,20/12/2021,31097742,"Supplies, Services & Other Expenses",Subsistence,Greater Manchester Combined Authority,210.00
WWW.APEA.ORG.UK,20/12/2021,31101464,Indirect Employee Allowances,Devolved Training,Greater Manchester Combined Authority,75.00
WWW.APEA.ORG.UK,20/12/2021,31103412,Indirect Employee Allowances,Devolved Training,Greater Manchester Combined Authority,-75.00
HYDEOUT BBQ LTD,23/12/2021,31104802,"Supplies, Services & Other Expenses",Subsistence,Greater Manchester Combined Authority,126.50
SUBWAY ASHTON ROAD,31/12/2021,31103219,"Supplies, Services & Other Expenses",Subsistence,Greater Manchester Combined Authority,32.46
